[Event "Schachfestival Open-A 2018"]
[Site "Lueneburg"]
[Date "2018.07.08"]
[Round "4"]
[White "Malakhatko, Vadim"]
[Black "Colpe, Malte"]
[Result "1-0"]
[ECO "A13"]
[WhiteElo "2499"]
[BlackElo "2382"]
[Annotator "ChessBase"]
[PlyCount "103"]
[EventDate "2018.07.06"]
[EventType "swiss"]
[EventCountry "GER"]
[SourceTitle "playchess.com"]
[Source "ChessBase"]
[SourceQuality "1"]
[TimeControl "40/5400+30:1800+30"]

1. c4 {[%emt 0:00:00]} e6 {[%emt 0:00:00]} 2. g3 {[%emt 0:00:00]} d5 {[%emt 0:00:00]} 3. Bg2 {[%emt 0:00:00]} Nf6 {[%emt 0:00:02]} 4. Nf3 {[%emt 0:00:00]} dxc4 {[%emt 0:00:38]} 5. Qa4+ {[%emt 0:00:00]} Bd7 {[%emt 0:00:24]} 6. Qxc4 {[%emt 0:00:04]} c5 {[%emt 0:00:21]} 7. Ne5 {[%emt 0:00:09]} Qc8 {[%emt 0:00:24]} 8. Qd3 {[%emt 0:01:10]} Nc6 {[%emt 0:00:34]} 9. Nxd7 {[%emt 0:00:06]} Nxd7 {[%emt 0:00:09]} 10. Nc3 {[%emt 0:00:15]} Be7 {[%emt 0:02:50]} 11. Qb5 {[%emt 0:00:08]} a6 {[%emt 0:03:18]} 12. Qa4 {[%emt 0:00:06]} b5 {[%emt 0:07:12]} 13. Qe4 {[%emt 0:08:51]} Nde5 {[%emt 0:01:32]} 14. f4 {[%emt 0:00:42]} f5 {[%emt 0:00:13]} 15. Qe3 {[%emt 0:17:24]} Nd4 {[%emt 0:07:00]} 16. O-O {[%emt 0:09:15]} Ng4 {[%emt 0:07:39]} 17. Qd3 {[%emt 0:00:04]} c4 {[%emt 0:07:31]} 18. Qb1 {[%emt 0:02:22]} Nxe2+ {[%emt 0:18:31]} 19. Nxe2 {[%emt 0:01:23]} Qc5+ {[%emt 0:00:07]} 20. Kh1 {[%emt 0:01:10]} Nf2+ {[%emt 0:00:09]} 21. Rxf2 {[%emt 0:00:08]} Qxf2 {[%emt 0:00:09]} 22. Ng1 {[%emt 0:03:20]} Rd8 {[%emt 0:02:54]} 23. Qc2 {[%emt 0:07:27]} h5 {[%emt 0:30:35]} 24. Qd1 {[%emt 0:00:44]} h4 {[%emt 0:01:17]} 25. Nh3 {[%emt 0:00:13]} Qd4 {[%emt 0:03:14]} 26. Qe1 {[%emt 0:10:34]} Kf7 {[%emt 0:01:18]} 27. d3 {[%emt 0:01:41]} Qxd3 {[%emt 0:01:21]} 28. Be3 {[%emt 0:00:11]} hxg3 {[%emt 0:00:29]} 29. Qxg3 {[%emt 0:00:42]} Bh4 {[%emt 0:01:48]} 30. Qf3 {[%emt 0:02:41]} Rd7 {[%emt 0:00:25]} 31. Rg1 {[%emt 0:00:59]} g6 {[%emt 0:00:25]} 32. Ng5+ {[%emt 0:03:29]} Bxg5 {[%emt 0:00:05]} 33. fxg5 {[%emt 0:00:04]} Qd6 {[%emt 0:00:59]} 34. Bf4 {[%emt 0:01:11]} e5 {[%emt 0:00:12]} 35. Bg3 {[%emt 0:00:04]} Re8 {[%emt 0:01:15]} 36. b3 {[%emt 0:04:11]} cxb3 {[%emt 0:01:28]} 37. Qxb3+ {[%emt 0:00:36]} Kg7 {[%emt 0:00:39]} 38. Re1 {[%emt 0:06:35]} f4 {[%emt 0:00:18]} 39. Bf2 {[%emt 0:00:09]} Qd2 {[%emt 0:00:51]} 40. Qh3 {[%emt 0:02:36]} Rd6 {[%emt 0:00:59]} 41. Kg1 {[%emt 0:34:53]} Qxa2 {[%emt 0:07:15]} 42. Bc5 {[%emt 0:00:00]} Qd2 {[%emt 0:03:18]} 43. Rf1 {[%emt 0:00:00]} Rde6 {[%emt 0:12:57]} 44. Qb3 {[%emt 0:00:00]} Qd8 {[%emt 0:03:24]} 45. h4 {[%emt 0:00:00]} Qc7 {[%emt 0:00:56]} 46. Rc1 {[%emt 0:00:00]} Qf7 {[%emt 0:02:59]} 47. Bd5 {[%emt 0:00:37]} Qf5 {[%emt 0:00:14]} 48. Bxe6 {[%emt 0:01:18]} Rxe6 {[%emt 0:00:10]} 49. Qd5 {[%emt 0:01:29]} Qg4+ {[%emt 0:01:44]} 50. Kf1 {[%emt 0:01:09]} Qh3+ {[%emt 0:00:26]} 51. Ke2 {[%emt 0:00:37]} Qh2+ {[%emt 0:00:41]} 52. Bf2 {[%emt 0:00:53]} 1-0

[Event "Schachfestival Open-A 2018"]
[Site "Lueneburg"]
[Date "2018.07.08"]
[Round "4"]
[White "Sebastian, Dirk"]
[Black "Weishaeutel, Moritz"]
[Result "1-0"]
[ECO "C05"]
[WhiteElo "2447"]
[BlackElo "2236"]
[Annotator "NA"]
[PlyCount "97"]
[EventDate "2018.07.06"]
[EventType "swiss"]
[EventCountry "GER"]
[SourceTitle "playchess.com"]
[Source "ChessBase"]
[SourceQuality "1"]
[TimeControl "40/5400+30:1800+30"]

1. e4 {[%emt 0:00:00]} e6 {[%emt 0:00:31]} 2. d4 {[%emt 0:00:00]} d5 {[%emt 0:00:09]} 3. Nd2 {[%emt 0:00:03]} Nf6 {[%emt 0:00:21]} 4. e5 {[%emt 0:00:07]} Nfd7 {[%emt 0:00:08]} 5. Bd3 {[%emt 0:00:05]} c5 {[%emt 0:00:21]} 6. c3 {[%emt 0:00:06]} Nc6 {[%emt 0:00:22]} 7. Ngf3 {[%emt 0:00:12]} f6 {[%emt 0:02:37]} 8. exf6 {[%emt 0:01:20]} Nxf6 {[%emt 0:00:59]} 9. O-O {[%emt 0:00:20]} cxd4 {[%emt 0:04:36]} 10. cxd4 {[%emt 0:02:53] LiveBook: 72 Games} Bd6 {[%emt 0:01:37]} 11. Re1 {[%emt 0:00:15]} O-O {[%emt 0:00:51]} 12. Nf1 {[%emt 0:00:06] C06: French Tarrasch: 3...Nf6 4 e5 Nfd7 5 Bd3 main lines} Qc7 {[%emt 0:08:15]} (12... Qb6 13. Rb1 Nb4 14. a3 Nxd3 15. Qxd3 Bd7 16. Ng3 Bb5 17. Qd1 Rae8 18. Ne5 Bxe5 19. Rxe5 Nd7 20. Rg5 e5 21. Be3 h6 22. Rh5 Qg6 23. Rc1 Bc6 {1-0 (23) Carlsen,M (2802)-Ponomariov,R (2744) Moscow 2010}) 13. Bd2 {[%emt 0:00:52]} e5 {[%emt 0:09:00]} 14. dxe5 {[%emt 0:00:10]} Nxe5 {[%emt 0:00:05]} 15. Nxe5 {[%emt 0:00:07]} Bxe5 {[%emt 0:00:05]} 16. Bb4 $146 {[%emt 0:00:32]} ({Predecessor:} 16. Qb3 Ng4 17. Qxd5+ Kh8 18. Ng3 Qb6 19. Be3 Nxe3 {½-½ (32) Krause,N (1895)-Schatz,D (1813) GER email 2012}) 16... Ng4 {[%emt 0:06:13]} (16... Re8 $11 {remains equal.}) 17. Rxe5 {[%emt 0:19:26]} Qxe5 {[%emt 0:14:44]} 18. Bxh7+ {[%emt 0:26:52]} Kxh7 {[%emt 0:00:26]} 19. Bxf8 {[%emt 0:00:06]} Nxf2 {[%emt 0:30:14]} 20. Kxf2 {[%emt 0:05:44]} Bg4 {[%emt 0:00:24]} 21. Qxg4 {[%emt 0:07:18]} Qxb2+ {[%emt 0:00:11]} 22. Kg1 {[%emt 0:00:29]} Qxa1 {[%emt 0:00:50]} 23. Bc5 {[%emt 0:05:18]} Qf6 {[%emt 0:03:48]} 24. Qh5+ {[%emt 0:01:42]} Kg8 {[%emt 0:00:30]} 25. h3 {[%emt 0:15:32]} Rd8 {[%emt 0:02:12]} 26. Ne3 {[%emt 0:02:10]} b6 {[%emt 0:00:49]} 27. Bb4 {[%emt 0:03:33]} Qf4 {[%emt 0:08:27]} 28. Bd2 {[%emt 0:01:45]} d4 {[%emt 0:00:21]} 29. Nf1 {[%emt 0:01:55]} Qf7 {[%emt 0:00:04]} 30. Qg5 {[%emt 0:00:17]} Qf6 {[%emt 0:02:02]} 31. Qb5 {[%emt 0:01:09]} Rf8 {[%emt 0:00:49]} 32. Be1 {[%emt 0:00:52]} Qf5 $11 {[%emt 0:01:06]} 33. Qc4+ {[%emt 0:00:08]} Qf7 {[%emt 0:00:04]} 34. Qe2 {[%emt 0:01:04]} Re8 {[%emt 0:01:11]} 35. Qd2 {[%emt 0:00:37]} Qc4 {[%emt 0:00:16]} 36. Bf2 {[%emt 0:02:09]} Re2 {[%emt 0:01:15]} 37. Qf4 {[%emt 0:00:36]} Rxa2 {[%emt 0:00:58]} 38. Ng3 {[%emt 0:01:15]} Qf7 {[%emt 0:01:34]} 39. Qxd4 {[%emt 0:01:05]} b5 {[%emt 0:00:29]} 40. Ne4 {[%emt 0:01:02]} Ra4 {[%emt 0:00:32]} 41. Qe5 {[%emt 0:06:55]} Rc4 {[%emt 0:09:50]} 42. Bc5 {[%emt 0:08:07]} Rc1+ {[%emt 0:04:24]} 43. Kh2 {[%emt 0:00:14]} Rxc5 {[%emt 0:01:34]} 44. Nxc5 {[%emt 0:01:13]} a5 {[%emt 0:00:47]} 45. Ne4 {[%emt 0:02:28]} a4 {[%emt 0:04:50]} 46. Ng5 {[%emt 0:03:06]} Qf8 {[%emt 0:03:07]} 47. h4 {[%emt 0:02:45]} g6 {[%emt 0:02:30]} 48. Qe6+ {[%emt 0:03:39]} Kg7 {[%emt 0:00:05]} 49. Qd7+ {[%emt 0:00:09]} 1-0

[Event "Schachfestival Open-A 2018"]
[Site "Lueneburg"]
[Date "2018.07.08"]
[Round "4"]
[White "Simantsev, Mikhail"]
[Black "Mirzoev, Azer"]
[Result "1/2-1/2"]
[ECO "D20"]
[WhiteElo "2434"]
[BlackElo "2506"]
[Annotator "ChessBase"]
[PlyCount "22"]
[EventDate "2018.07.06"]
[EventType "swiss"]
[EventCountry "GER"]
[SourceTitle "playchess.com"]
[Source "ChessBase"]
[SourceQuality "1"]
[TimeControl "40/5400+30:1800+30"]

1. d4 {[%emt 0:00:00]} d5 {[%emt 0:08:52]} 2. c4 {[%emt 0:00:00]} dxc4 {[%emt 0:00:19]} 3. e4 {[%emt 0:02:50]} Nf6 {[%emt 0:00:24]} 4. e5 {[%emt 0:00:09]} Nd5 {[%emt 0:01:07]} 5. Bxc4 {[%emt 0:00:07]} Nb6 {[%emt 0:00:34]} 6. Bb3 {[%emt 0:00:49]} Nc6 {[%emt 0:02:09]} 7. Nf3 {[%emt 0:01:08]} Bg4 {[%emt 0:01:27]} 8. Ng5 {[%emt 0:00:25]} Bxd1 {[%emt 0:03:09]} 9. Bxf7+ {[%emt 0:00:07]} Kd7 {[%emt 0:00:05]} 10. Be6+ {[%emt 0:00:04]} Ke8 {[%emt 0:00:03]} 11. Bf7+ {[%emt 0:00:06]} Kd7 {[%emt 0:00:09]} 1/2-1/2

[Event "Schachfestival Open-A 2018"]
[Site "Lueneburg"]
[Date "2018.07.08"]
[Round "4"]
[White "Sriram, Jha"]
[Black "Karpatchev, Aleksandr"]
[Result "1/2-1/2"]
[ECO "A06"]
[WhiteElo "2409"]
[BlackElo "2469"]
[Annotator "ChessBase"]
[PlyCount "31"]
[EventDate "2018.07.06"]
[EventType "swiss"]
[EventCountry "GER"]
[SourceTitle "playchess.com"]
[Source "ChessBase"]
[SourceQuality "1"]
[TimeControl "40/5400+30:1800+30"]

1. Nf3 {[%emt 0:02:46]} d5 {[%emt 0:00:00]} 2. g3 {[%emt 0:00:27]} g6 {[%emt 0:03:55]} 3. Bg2 {[%emt 0:03:26]} Bg7 {[%emt 0:00:06]} 4. d4 {[%emt 0:00:44]} Nf6 {[%emt 0:01:08]} 5. O-O {[%emt 0:00:15]} c6 {[%emt 0:00:23]} 6. c4 {[%emt 0:00:17]} dxc4 {[%emt 0:00:17]} 7. a4 {[%emt 0:00:10]} Ne4 {[%emt 0:01:02]} 8. Qc2 {[%emt 0:00:45]} Nd6 {[%emt 0:00:09]} 9. e4 {[%emt 0:00:02]} a5 {[%emt 0:06:29]} 10. Na3 {[%emt 0:01:21]} Na6 {[%emt 0:07:29]} 11. Nxc4 {[%emt 0:02:20]} Nb4 {[%emt 0:07:12]} 12. Nxd6+ exd6 13. Qd1 Bg4 14. h3 Bxf3 15. Bxf3 d5 16. Be3 1/2-1/2

[Event "Schachfestival Open-A 2018"]
[Site "Lueneburg"]
[Date "2018.07.08"]
[Round "4"]
[White "Hess, Christian Mathias"]
[Black "Utiatskaja, Irina"]
[Result "0-1"]
[ECO "B08"]
[WhiteElo "2243"]
[BlackElo "2155"]
[Annotator "NA"]
[PlyCount "60"]
[EventDate "2018.07.06"]
[EventType "swiss"]
[EventCountry "GER"]
[SourceTitle "playchess.com"]
[Source "ChessBase"]
[SourceQuality "1"]
[TimeControl "40/5400+30:1800+30"]

1. Nf3 {[%emt 0:00:00]} g6 {[%emt 0:00:04]} 2. e4 {[%emt 0:00:19]} Bg7 {[%emt 0:00:07]} 3. d4 {[%emt 0:00:06]} d6 {[%emt 0:00:13]} 4. Be2 {[%emt 0:01:41]} Nf6 {[%emt 0:03:47]} 5. Nc3 {[%emt 0:00:45]} O-O {[%emt 0:01:12]} 6. O-O {[%emt 0:00:11]} c6 {[%emt 0:07:51]} 7. a4 {[%emt 0:04:49]} Qc7 {[%emt 0:09:08]} 8. b3 {[%emt 0:22:30]} Rd8 {[%emt 0:10:31]} 9. Ba3 {[%emt 0:03:44]} a5 {[%emt 0:09:01]} 10. Re1 {[%emt 0:03:33]} Na6 {[%emt 0:01:22]} 11. Bc4 {[%emt 0:00:39]} h6 {[%emt 0:01:16]} 12. e5 {[%emt 0:02:18]} dxe5 {[%emt 0:00:31]} 13. Nxe5 {[%emt 0:02:01]} e6 {[%emt 0:02:37]} 14. Ne4 {[%emt 0:21:07]} Nxe4 {[%emt 0:10:36]} 15. Rxe4 {[%emt 0:00:03]} Kh7 {[%emt 0:00:49]} 16. Qf3 {[%emt 0:13:54]} f6 {[%emt 0:02:03]} 17. Nd3 {[%emt 0:09:41]} f5 {[%emt 0:00:55]} 18. Re2 {[%emt 0:00:16]} Bxd4 {[%emt 0:05:00]} 19. Rae1 {[%emt 0:00:17]} Bc3 {[%emt 0:01:16]} 20. Rf1 {[%emt 0:06:59]} e5 {[%emt 0:03:08]} 21. Nf4 {[%emt 0:00:32]} Bb4 {[%emt 0:01:00]} 22. Nxg6 {[%emt 0:03:50]} Kxg6 {[%emt 0:06:47]} 23. Qg3+ {[%emt 0:00:16]} Kh7 {[%emt 0:00:07]} 24. Bb2 {[%emt 0:00:56]} e4 {[%emt 0:02:20]} 25. Be5 {[%emt 0:00:49]} Bd6 {[%emt 0:02:20]} 26. f4 {[%emt 0:00:44]} Bxe5 {[%emt 0:05:01]} 27. fxe5 {[%emt 0:00:02]} b5 {[%emt 0:00:05]} 28. Rxe4 {[%emt 0:01:11]} bxc4 {[%emt 0:00:05]} 29. Rh4 {[%emt 0:00:27]} Qg7 {[%emt 0:02:53]} 30. Qf3 {[%emt 0:00:09]} Nb4 {[%emt 0:00:45]} 0-1

[Event "Schachfestival Open-A 2018"]
[Site "Lueneburg"]
[Date "2018.07.08"]
[Round "4"]
[White "Ngo, Minh Duc"]
[Black "Marxen, Peter"]
[Result "1/2-1/2"]
[ECO "A06"]
[WhiteElo "2191"]
[BlackElo "2068"]
[Annotator "NA"]
[PlyCount "151"]
[EventDate "2018.07.06"]
[EventType "swiss"]
[EventCountry "GER"]
[SourceTitle "playchess.com"]
[Source "ChessBase"]
[SourceQuality "1"]
[TimeControl "40/5400+30:1800+30"]

1. Nf3 {[%emt 0:00:00]} d5 {[%emt 0:00:01]} 2. b3 {[%emt 0:00:00]} Bf5 {[%emt 0:01:05]} 3. Bb2 {[%emt 0:00:00]} e6 {[%emt 0:00:11]} 4. e3 {[%emt 0:00:56]} h6 {[%emt 0:00:26]} 5. d4 {[%emt 0:01:30]} Nf6 {[%emt 0:01:32]} 6. Nbd2 {[%emt 0:00:24]} Nbd7 {[%emt 0:00:45]} 7. Be2 {[%emt 0:00:18]} Bd6 {[%emt 0:01:37]} 8. O-O {[%emt 0:00:27]} Qe7 {[%emt 0:00:18]} 9. c4 {[%emt 0:00:35]} Ba3 {[%emt 0:02:29]} 10. Bc3 {[%emt 0:05:15]} Bb4 {[%emt 0:02:00]} 11. Qc1 {[%emt 0:00:50]} Bxc3 {[%emt 0:00:32]} 12. Qxc3 {[%emt 0:00:03]} c6 {[%emt 0:00:43]} 13. Rfe1 {[%emt 0:05:33]} O-O {[%emt 0:01:23]} 14. Bd3 {[%emt 0:00:34]} Bxd3 {[%emt 0:01:18]} 15. Qxd3 {[%emt 0:00:02]} Rfe8 {[%emt 0:01:45]} 16. e4 {[%emt 0:00:07]} dxe4 {[%emt 0:01:50]} 17. Nxe4 {[%emt 0:00:05]} Nxe4 {[%emt 0:01:43]} 18. Qxe4 {[%emt 0:00:05]} Rad8 {[%emt 0:03:19]} 19. Rad1 {[%emt 0:00:29]} Nf6 {[%emt 0:04:42]} 20. Qf4 {[%emt 0:01:43]} a6 {[%emt 0:10:46]} 21. g4 {[%emt 0:04:00]} Qd6 {[%emt 0:04:55]} 22. Ne5 {[%emt 0:00:52]} Qe7 {[%emt 0:05:34]} 23. Qg3 {[%emt 0:04:10]} c5 {[%emt 0:03:43]} 24. dxc5 {[%emt 0:15:56]} Qxc5 {[%emt 0:02:51]} 25. Qf4 {[%emt 0:03:43]} Qe7 {[%emt 0:03:49]} 26. Qf3 {[%emt 0:05:15]} Nh7 {[%emt 0:09:01]} 27. Qe3 {[%emt 0:05:35]} Rxd1 {[%emt 0:01:52]} 28. Rxd1 {[%emt 0:00:04]} Rd8 {[%emt 0:00:44]} 29. Rxd8+ {[%emt 0:01:25]} Qxd8 {[%emt 0:00:02]} 30. Qd3 {[%emt 0:00:10]} Qa5 {[%emt 0:06:40]} 31. Nxf7 {[%emt 0:02:17]} Kxf7 {[%emt 0:02:20]} 32. Qxh7 {[%emt 0:00:04]} Qxa2 {[%emt 0:00:18]} 33. Qd3 {[%emt 0:00:23]} Qa1+ {[%emt 0:04:56]} 34. Kg2 {[%emt 0:00:10]} Qf6 {[%emt 0:00:45]} 35. c5 {[%emt 0:09:46]} Qe7 {[%emt 0:06:29]} 36. Qd4 {[%emt 0:02:15]} Qc7 {[%emt 0:04:48]} 37. h4 {[%emt 0:03:28]} Qc6+ {[%emt 0:02:26]} 38. Kg3 {[%emt 0:00:49]} Qh1 {[%emt 0:06:09]} 39. Qd7+ {[%emt 0:00:58]} Kf6 {[%emt 0:00:42]} 40. g5+ {[%emt 0:02:30]} hxg5 {[%emt 0:00:02]} 41. hxg5+ {[%emt 0:30:06]} Kxg5 {[%emt 0:30:43]} 42. Qxg7+ {[%emt 0:00:35]} Kf5 {[%emt 0:00:03]} 43. Qf7+ {[%emt 0:00:42]} Ke5 {[%emt 0:01:23]} 44. Qf4+ {[%emt 0:00:28]} Kd5 {[%emt 0:00:23]} 45. Qd6+ {[%emt 0:00:09]} Ke4 {[%emt 0:00:50]} 46. Qxe6+ {[%emt 0:00:02]} Kd4 {[%emt 0:00:59]} 47. Qc4+ {[%emt 0:01:30]} Ke5 {[%emt 0:00:19]} 48. f4+ {[%emt 0:00:53]} Kf6 {[%emt 0:00:22]} 49. Qd4+ {[%emt 0:00:24]} Kf7 {[%emt 0:01:45]} 50. Qd7+ {[%emt 0:02:07]} Kf6 {[%emt 0:00:41]} 51. Qd4+ {[%emt 0:02:00]} Kf5 {[%emt 0:00:00]} 52. Qe5+ {[%emt 0:00:00]} Kg6 {[%emt 0:00:00]} 53. f5+ {[%emt 0:00:00]} Kg5 {[%emt 0:00:00]} 54. Qf4+ {[%emt 0:00:00]} Kf6 {[%emt 0:00:00]} 55. Kf2 {[%emt 0:00:00]} Qb1 {[%emt 0:00:00]} 56. Qh6+ {[%emt 0:00:00]} Ke5 {[%emt 0:00:00]} 57. Qe6+ {[%emt 0:00:00]} Kf4 {[%emt 0:00:00]} 58. f6 {[%emt 0:00:00]} Qb2+ {[%emt 0:00:00]} 59. Kf1 {[%emt 0:00:10]} Qa1+ {[%emt 0:00:00]} 60. Kg2 {[%emt 0:00:43]} Qb2+ {[%emt 0:00:00]} 61. Kf1 {[%emt 0:01:01]} Qa1+ {[%emt 0:00:00]} 62. Ke2 {[%emt 0:00:22]} Qb2+ {[%emt 0:00:00]} 63. Kd3 {[%emt 0:00:29]} Qb1+ {[%emt 0:00:00]} 64. Kc3 {[%emt 0:01:14]} Qc1+ {[%emt 0:00:00]} 65. Kd3 {[%emt 0:03:14]} Qd1+ {[%emt 0:04:39]} 66. Kc3 {[%emt 0:03:25]} Qc1+ {[%emt 0:00:02]} 67. Kb4 {[%emt 0:00:53]} Qd2+ {[%emt 0:00:21]} 68. Ka3 {[%emt 0:01:10]} Qa5+ {[%emt 0:00:07]} 69. Kb2 {[%emt 0:00:11]} Qd2+ {[%emt 0:00:02]} 70. Kb1 {[%emt 0:00:26]} Qd1+ {[%emt 0:00:06]} 71. Ka2 {[%emt 0:01:11]} Qd2+ {[%emt 0:00:07]} 72. Ka1 {[%emt 0:01:13]} Qc1+ {[%emt 0:00:07]} 73. Ka2 {[%emt 0:00:05]} Qd2+ {[%emt 0:00:08]} 74. Kb1 {[%emt 0:01:26]} Qd1+ {[%emt 0:00:03]} 75. Kb2 {[%emt 0:00:10]} Qd2+ {[%emt 0:00:26]} 76. Kb1 1/2-1/2

[Event "Schachfestival Open-A 2018"]
[Site "Lueneburg"]
[Date "2018.07.08"]
[Round "4"]
[White "Kardoeus, David"]
[Black "Hesse, Henrik"]
[Result "0-1"]
[ECO "B48"]
[WhiteElo "2188"]
[BlackElo "2057"]
[Annotator "NA"]
[PlyCount "46"]
[EventDate "2018.07.06"]
[EventType "swiss"]
[EventCountry "GER"]
[SourceTitle "playchess.com"]
[Source "ChessBase"]
[SourceQuality "1"]
[TimeControl "40/5400+30:1800+30"]

1. e4 {[%emt 0:01:51]} c5 {[%emt 0:00:00]} 2. Nf3 {[%emt 0:00:14]} e6 {[%emt 0:00:01]} 3. d4 {[%emt 0:00:06]} cxd4 {[%emt 0:00:07]} 4. Nxd4 {[%emt 0:00:06]} Nc6 {[%emt 0:00:15]} 5. Nc3 {[%emt 0:00:11]} Qc7 {[%emt 0:00:10]} 6. Be3 $14 {[%emt 0:00:06] LiveBook: 7376 Games} a6 {[%emt 0:01:00]} 7. Qf3 {[%emt 0:01:19]} d6 {[%emt 0:01:25]} 8. O-O-O {[%emt 0:02:40]} Bd7 {[%emt 0:04:43]} 9. Qg3 {[%emt 0:05:26]} Nf6 {[%emt 0:02:14]} 10. Kb1 {[%emt 0:08:35]} g6 {[%emt 0:19:54]} 11. Be2 {[%emt 0:23:57]} b5 {[%emt 0:13:41]} 12. a3 {[%emt 0:11:57]} Rb8 {[%emt 0:10:31]} 13. Bg5 {[%emt 0:03:25]} Ng8 {[%emt 0:04:15]} 14. Rhe1 {[%emt 0:06:47]} h6 {[%emt 0:08:57]} 15. Be3 {[%emt 0:14:50]} Nf6 {[%emt 0:14:58]} 16. f4 {[%emt 0:01:41]} b4 {[%emt 0:04:02]} 17. axb4 {[%emt 0:01:20]} Nxb4 {[%emt 0:01:21]} 18. Nb3 {[%emt 0:03:31]} Nxe4 {[%emt 0:01:39]} 19. Qf3 {[%emt 0:04:59]} Nxc3+ {[%emt 0:00:39]} 20. bxc3 {[%emt 0:00:02]} Qxc3 {[%emt 0:00:45]} 21. Qe4 {[%emt 0:02:49]} Bg7 {[%emt 0:01:39]} 22. Bc1 {[%emt 0:04:08]} Nd3 {[%emt 0:01:06]} 23. Rxd3 {[%emt 0:00:36]} Qa1# {[%emt 0:00:33]} 0-1

[Event "Schachfestival Open-A 2018"]
[Site "Lueneburg"]
[Date "2018.07.08"]
[Round "4"]
[White "Herrmann, Andreas"]
[Black "Popvasilev, Kaloyan"]
[Result "0-1"]
[ECO "A46"]
[WhiteElo "2171"]
[BlackElo "2020"]
[Annotator "NA"]
[PlyCount "132"]
[EventDate "2018.07.06"]
[EventType "swiss"]
[EventCountry "GER"]
[SourceTitle "playchess.com"]
[Source "ChessBase"]
[SourceQuality "1"]
[TimeControl "40/5400+30:1800+30"]

1. d4 {[%emt 0:00:00]} Nf6 {[%emt 0:00:00]} 2. Nf3 {[%emt 0:00:00]} e6 {[%emt 0:00:03]} 3. Bf4 {[%emt 0:00:00]} b6 {[%emt 0:01:35]} 4. Nbd2 {[%emt 0:00:12]} Bb7 {[%emt 0:00:31]} 5. e3 {[%emt 0:00:09]} Be7 {[%emt 0:01:14]} 6. h3 {[%emt 0:00:21]} O-O {[%emt 0:00:38]} 7. Bd3 {[%emt 0:00:17]} c5 {[%emt 0:01:30]} 8. O-O {[%emt 0:00:22]} cxd4 {[%emt 0:01:29]} 9. exd4 {[%emt 0:00:12]} d6 {[%emt 0:01:06]} 10. Re1 {[%emt 0:00:14]} a6 {[%emt 0:01:16]} 11. a4 {[%emt 0:00:11]} Nbd7 {[%emt 0:01:16]} 12. c3 {[%emt 0:00:59]} Re8 {[%emt 0:00:36]} 13. Bh2 {[%emt 0:00:17]} Nf8 {[%emt 0:01:09]} 14. Qb3 {[%emt 0:02:37]} Ng6 {[%emt 0:02:51]} 15. a5 {[%emt 0:01:19]} b5 {[%emt 0:02:19]} 16. c4 {[%emt 0:00:13]} Bxf3 {[%emt 0:12:02]} 17. Nxf3 $11 {[%emt 0:00:13]} ({Much weaker is} 17. gxf3 bxc4 18. Nxc4 Nd5 $17) 17... bxc4 {[%emt 0:00:58]} 18. Bxc4 {[%emt 0:00:13]} Qb8 {[%emt 0:04:06]} 19. Qd3 {[%emt 0:01:14]} Qa7 {[%emt 0:01:37]} 20. Qe2 {[%emt 0:04:14]} Bf8 {[%emt 0:18:46]} 21. Bd3 {[%emt 0:00:41]} Reb8 {[%emt 0:06:32]} 22. Rec1 {[%emt 0:00:36]} Nd5 {[%emt 0:03:31]} 23. Bxg6 {[%emt 0:06:38]} hxg6 {[%emt 0:00:09]} 24. Rc6 {[%emt 0:03:55]} Qb7 {[%emt 0:06:42]} 25. Rac1 {[%emt 0:01:35]} Qxb2 {[%emt 0:03:05]} 26. Qxb2 {[%emt 0:00:20]} Rxb2 {[%emt 0:00:04]} 27. Bxd6 {[%emt 0:00:06]} Bxd6 {[%emt 0:11:49]} 28. Rxd6 {[%emt 0:00:08]} Ra2 {[%emt 0:05:09]} 29. Rc5 {[%emt 0:00:14]} Nf6 {[%emt 0:02:17]} 30. Ng5 {[%emt 0:00:15]} Kf8 {[%emt 0:03:22]} 31. Rc7 {[%emt 0:00:23]} Rxa5 {[%emt 0:01:17]} 32. f4 {[%emt 0:03:12]} Rxg5 {[%emt 0:00:59]} 33. fxg5 {[%emt 0:00:59]} Ne8 {[%emt 0:00:03]} 34. Rdd7 {[%emt 0:01:19]} Nxc7 {[%emt 0:00:05]} 35. Rxc7 {[%emt 0:00:03]} a5 {[%emt 0:00:07]} 36. Rc3 {[%emt 0:00:09]} a4 {[%emt 0:00:12]} 37. Ra3 {[%emt 0:00:06]} Ke7 {[%emt 0:01:28]} 38. Kf2 {[%emt 0:00:05]} Kd6 {[%emt 0:00:11]} 39. Ke3 {[%emt 0:00:06]} Kc6 {[%emt 0:01:41]} 40. Kd3 {[%emt 0:00:06]} Kb5 {[%emt 0:00:07]} 41. Kc3 {[%emt 0:30:05]} Rc8+ {[%emt 0:30:10]} 42. Kb2 {[%emt 0:00:07]} Kb4 {[%emt 0:01:18]} 43. Rf3 {[%emt 0:00:10]} Rc7 {[%emt 0:00:35]} 44. h4 {[%emt 0:00:44]} Ra7 {[%emt 0:00:00]} 45. Rf4 {[%emt 0:00:00]} a3+ {[%emt 0:00:00]} 46. Ka2 {[%emt 0:00:00]} Kc4 {[%emt 0:00:00]} 47. g4 {[%emt 0:00:00]} Kd3 {[%emt 0:00:00]} 48. h5 {[%emt 0:00:00]} Ke3 {[%emt 0:00:00]} 49. Rf1 {[%emt 0:00:00]} gxh5 {[%emt 0:00:00]} 50. gxh5 {[%emt 0:00:00]} Kxd4 {[%emt 0:00:00]} 51. g6 {[%emt 0:00:00]} f5 {[%emt 0:00:00]} 52. Rd1+ {[%emt 0:00:00]} Ke5 {[%emt 0:00:00]} 53. Rd8 {[%emt 0:00:00]} Kf6 {[%emt 0:00:00]} 54. Rf8+ {[%emt 0:00:00]} Kg5 {[%emt 0:00:00]} 55. Rf7 {[%emt 0:00:00]} Ra8 {[%emt 0:00:00]} 56. Rxg7 {[%emt 0:00:00]} Kxh5 {[%emt 0:00:00]} 57. Re7 {[%emt 0:00:00]} Kxg6 {[%emt 0:00:29]} 58. Rxe6+ {[%emt 0:00:00]} Kg5 {[%emt 0:00:06]} 59. Re1 {[%emt 0:00:00]} f4 {[%emt 0:01:15]} 60. Rg1+ {[%emt 0:00:00]} Kh4 {[%emt 0:00:12]} 61. Rh1+ {[%emt 0:00:00]} Kg3 {[%emt 0:01:07]} 62. Rg1+ {[%emt 0:00:00]} Kf2 {[%emt 0:00:14]} 63. Rg7 {[%emt 0:00:00]} f3 {[%emt 0:00:57]} 64. Rg6 {[%emt 0:00:00]} Ra5 {[%emt 0:00:37]} 65. Rg8 {[%emt 0:00:00]} Ke3 {[%emt 0:00:13]} 66. Re8+ {[%emt 0:00:00]} Kf4 {[%emt 0:00:06]} 0-1